Cogmind - Beta 10.2 @@@ ROGUE MODE // 2020.12.11 @ 10:17:43 Player: Perseus Result: Destroyed by as-24719 with Assembled Rifle Performance ------------- Evolutions (0) 0 Regions Visited (2) 400 Robots Destroyed (45) 225 Value Destroyed (860) 860 Prototype IDs (2) 40 Alien Tech Used (0) 0 Bonus (-76) -76 TOTAL SCORE: 1449 Bonus ------- Friendly Fire -76 Cogmind --------- Core Integrity 0/250 Matter 204/300 Energy 181/250 System Corruption 17% Temperature Cool (1) Movement Walking (120) Location -10/Mines Parts ------- > --- POWER (1) -------- Ion Engine > --- PROPULSION (2) --- Aluminum Leg Aluminum Leg > --- UTILITY (2) ------ Medium Storage Unit > --- WEAPON (2) ------- Light Assault Rifle Heavy Assault Rifle > --- INVENTORY (8) ---- Improved Heat Sink Small Laser Beam Rifle Datajack Peak State ------------ > --- POWER ------------ Ion Engine > --- PROPULSION ------- Aluminum Leg Aluminum Leg > --- UTILITY ---------- Medium Storage Unit Hacking Suite > --- WEAPON ----------- Particle Gun Assault Rifle > --- INVENTORY -------- Ion Engine Aluminum Leg Improved Heat Sink Small Laser Small Laser Light Assault Rifle Grenade Launcher Datajack [Rating: 11] Favorites ----------- Power Ion Engine Engine Ion Engine Propulsion Aluminum Leg Leg Aluminum Leg Utility Medium Storage Unit Device Improved Heat Sink Storage Medium Storage Unit Hackware Hacking Suite Weapon Particle Gun Energy Gun Particle Gun Ballistic Gun Assault Rifle Launcher Grenade Launcher Build | -11 -10 -10 ------- Run | Scr Mat Min Slots Evolved . | . . . Power . | . . . Propulsion . | . . . Utility . | . . . Weapon . | . . . Parts Attached 39 | 9 22 8 Power 6 | 1 4 1 Engine 6 | 1 4 1 Core . | . . . Reactor . | . . . Propulsion 9 | 2 6 1 Treads . | . . . Leg 9 | 2 6 1 Wheel . | . . . Hover . | . . . Flight . | . . . Utility 5 | 2 3 . Device 2 | 1 1 . Storage 2 | 1 1 . Processor . | . . . Hackware 1 | . 1 . Protection . | . . . Artifact . | . . . Weapon 19 | 4 9 6 Energy Gun 11 | 3 7 1 Energy Cannon . | . . . Ballistic Gun 6 | 1 1 4 Ballistic Cannon . | . . . Launcher 2 | . 1 1 Special Weapon . | . . . Impact Weapon . | . . . Slashing Weapon . | . . . Piercing Weapon . | . . . Special Melee Weapon . | . . . Unidentified Prototypes . | . . . Parts Lost 10 | . 5 5 Power 1 | . . 1 Propulsion 1 | . . 1 Utility 2 | . 1 1 Weapon 6 | . 4 2 Highest Loss Streak 5 | . 3 5 Average Slot Usage (%) 97 | . 98 92 Engine 13 | . 14 13 Leg 27 | . 28 27 Device 3 | . 4 . Storage 14 | . 14 14 Hackware 9 | . 9 12 Energy Gun 15 | . 16 9 Ballistic Gun 10 | . 9 13 Naked Turns . | . . . Heaviest Build 19 | 13 19 19 Greatest Support 20 | 20 20 20 Greatest Overweight (x) . | . . . Average Overweight (x) . | . . . Largest Inventory Capacity 8 | 6 8 8 Average Capacity 7 | 5 7 8 Most Carried 8 | 4 8 8 Average Carried 6 | 2 7 7 Final Capacity 8 | 6 8 8 Final Carried 8 | 3 8 4 Class Distribution -------------------- 70% | Scavenger-Mutant 29% | Mutant Dominant Class ---------------- Scavenger-Mutant | -10/Materials Scavenger-Mutant | -10/Mines Resources | -11 -10 -10 ----------- Run | Scr Mat Min Matter Collected 769 | 308 313 148 Remotely . | . . . Salvage Created 1422 | 190 1080 152 Parts 109 | 16 83 10 Haulers Intercepted 2 | . 2 . Recyclers Shooed . | . . . Parts Field Recycled . | . . . Retrieved Matter . | . . . Parts Self-Destructed . | . . . Prevented . | . . . Kills | -11 -10 -10 ------- Run | Scr Mat Min Combat Hostiles Destroyed 31 | . 18 13 Guns 19 | . 18 1 AOE 12 | . . 12 Classes Destroyed 10 | 3 6 1 Worker 5 | 2 3 . Builder 1 | . 1 . Tunneler 6 | 5 1 . Hauler 2 | . 2 . Recycler 4 | 1 2 1 Operator 2 | . 2 . Watcher 2 | . 2 . Swarmer 8 | . 3 5 Grunt 15 | . 15 . Assembled 8 | . . 8 Best Kill Streak 11 | 8 7 11 Combat Bots Only 10 | . 6 10 Max Kills in Single Turn 5 | 1 2 5 Gunslinging . | . . . Exploded 5 | . . 5 Melee . | . . . Uniques/NPCs Destroyed . | . . . Combat | -11 -10 -10 -------- Run | Scr Mat Min Damage Taken 1358 | . 722 636 Core 257 | . 124 133 Absorbed by Shields . | . . . Core Remaining (%) 100 | 100 . . Volleys Fired 112 | 18 82 12 Largest 2 | 2 2 2 Hottest 105 | 70 105 63 Shots Fired 204 | 36 147 21 Gun 189 | 36 137 16 Cannon . | . . . Launcher 15 | . 10 5 Special . | . . . Kinetic 80 | 18 49 13 Thermal 82 | 18 61 3 Explosive 15 | . 10 5 Electromagnetic 27 | . 27 . Robot Hit Streak 14 | 6 14 4 Robot Miss Streak 3 | 3 3 3 Penetration Max . | . . . Secondary Targets 1 | . 1 . Max Gunslinging Chain 1 | . 1 . Shots Hit Robots 117 | 21 88 8 Core Hits 74 | 10 43 21 Critical Hits . | . . . Critical Kills . | . . . Critical Parts Destroyed . | . . . Melee Attacks . | . . . Impact . | . . . Slashing . | . . . Piercing . | . . . Sneak Attacks . | . . . Combat Hostiles . | . . . Follow-up Attacks . | . . . Damage Inflicted 2235 | 222 1193 820 Guns 1447 | 222 1147 78 Cannons . | . . . Explosions 788 | . 46 742 Melee . | . . . Ramming . | . . . Kinetic 404 | 60 291 53 Thermal 939 | 162 570 207 Explosive 560 | . . 560 Electromagnetic 332 | . 332 . Impact . | . . . Slashing . | . . . Piercing . | . . . Highest Corruption 17 | . 3 17 Average Corruption 3 | . 2 5 Corruption Purged . | . . . Effects 12 | . 8 4 Message Errors 5 | . 4 1 Parts Rejected 1 | . . 1 Data Loss (minor) 1 | . 1 . Targeting Errors 5 | . 3 2 Overload Shots . | . . . Overflow Damage 3 | . 3 . Projectiles . | . . . Explosions 3 | . 3 . Melee . | . . . Knockbacks . | . . . Impact . | . . . Kinetic . | . . . Secondary . | . . . Self-Inflicted Damage 48 | . . 48 Shots 2 | . . 2 Rammed . | . . . Targets Rammed . | . . . Kicked . | . . . Crushed . | . . . Highest Temperature 225 | 100 225 3 Average Temperature 57 | 43 63 1 Received Heat Transfer 353 | . 333 20 Siege Activations . | . . . Robots Corrupted . | . . . Combat Hostiles . | . . . Parts Fried 3 | . 3 . Impact Corruptions . | . . . Robots Melted . | . . . Combat Hostiles . | . . . Parts Melted . | . . . Heat Transferred 2140 | 481 1359 300 Parts Sabotaged . | . . . Parts Stolen . | . . . Parts Stripped . | . . . Power Chain Reactions 1 | . 1 . Missiles Intercepted . | . . . Alert | -11 -10 -10 ------- Run | Scr Mat Min Peak Influence 449 | 40 449 389 Initial 174 | . 26 174 Average 277 | 12 302 300 Maximum Alert Level 2 | . 2 1 Low Security (%) 20 | 100 15 . Level 1 64 | . 66 100 Level 2 14 | . 18 . Level 3 . | . . . Level 4 . | . . . Level 5 . | . . . High Security . | . . . Max Security . | . . . Squads Dispatched 5 | . 5 . Investigation 3 | . 3 . Extermination . | . . . Reinforcement 2 | . 2 . Assault . | . . . Garrison . | . . . Intercept . | . . . Construction Impeded . | . . . Haulers Reinforced . | . . . Stealth | -11 -10 -10 --------- Run | Scr Mat Min Distress Signals 2 | . 2 . Communications Jammed . | . . . Distress Signals . | . . . Times Spotted 54 | . 28 26 Peak Tracking Total 11 | . 6 11 Tactical Retreats . | . . . Traps | -11 -10 -10 ------- Run | Scr Mat Min Traps Triggered 3 | . 3 . Indirectly . | . . . Trap Hack Attempts . | . . . Triggered . | . . . Disarmed . | . . . Reprogrammed . | . . . Reused . | . . . Traps Extracted . | . . . Installed . | . . . Triggered . | . . . Machines | -11 -10 -10 ---------- Run | Scr Mat Min Machines Disabled 11 | . 6 5 Max in Single Turn 3 | . 1 3 Machines Sabotaged . | . . . Garrisons Compromised . | . . . Overloaded Fab Kills . | . . . Fab Network Shutdowns . | . . . Hacking | -11 -10 -10 --------- Run | Scr Mat Min Machines Accessed 8 | . 8 . Terminals 6 | . 6 . Fabricators . | . . . Repair Stations . | . . . Recycling Units 2 | . 2 . Scanalyzers . | . . . Garrison Access . | . . . Total Hacks 21 | . 21 . Successful 14 | . 14 . Failed 7 | . 7 . Catastrophic . | . . . Database Lockouts . | . . . Manual 19 | . 19 . Terminals 19 | . 19 . Fabricators . | . . . Repair Stations . | . . . Recycling Units 2 | . 2 . Scanalyzers . | . . . Garrison Access . | . . . Terminal Hacks 7 | . 7 . Robot Analysis 5 | . 5 . Prototype ID Bank 1 | . 1 . Locate Traps 1 | . 1 . Fabricator Hacks . | . . . Repair Station Hacks . | . . . Recycling Unit Hacks . | . . . Scanalyzer . | . . . Garrison Access Hacks . | . . . Unauthorized Hacks 7 | . 7 . Terminals 5 | . 5 . Botnet 5 | . 5 . Fabricators . | . . . Repair Stations . | . . . Recycling Units 2 | . 2 . Tunnel 2 | . 2 . Scanalyzers . | . . . Garrison Access . | . . . Data Cores Recovered . | . . . Used . | . . . Hacking Detections 6 | . 6 . Full Trace Events . | . . . Feedback Events . | . . . Feedback Blocked . | . . . Robot Schematics Acquired . | . . . Robots Built . | . . . Matter . | . . . Time . | . . . Total Robot Build Rating . | . . . Part Schematics Acquired . | . . . Parts Built . | . . . Matter . | . . . Time . | . . . Total Part Build Rating . | . . . Parts Repaired . | . . . Time . | . . . Parts Recycled . | . . . Recycled Matter . | . . . Retrieved Matter . | . . . Retrieved Components . | . . . Parts Scanalyzed . | . . . Part Schematics Acquired . | . . . Parts Damaged . | . . . Bothacking | -11 -10 -10 ------------ Run | Scr Mat Min Used RIF Installer . | . . . Robots Hacked . | . . . Non-combat . | . . . Combat . | . . . Robot Hacks Applied . | . . . Relay Couplers Released . | . . . Robots Rewired . | . . . Allies Hacked . | . . . Hacks Repelled . | . . . Allies | -11 -10 -10 -------- Run | Scr Mat Min Total Allies . | . . . Largest Group . | . . . Highest-Rated Group . | . . . Highest-Rated Ally . | . . . Total Orders . | . . . Ally Attacks . | . . . Total Damage . | . . . Kills . | . . . Allies Corrupted . | . . . Allies Melted . | . . . Intel | -11 -10 -10 ------- Run | Scr Mat Min Robot Analysis Total 5 | . 5 . Derelict Logs Recovered . | . . . Drone Launches . | . . . Drone Recoveries . | . . . Exploration | -11 -10 -10 ------------- Run | Scr Mat Min Turns Passed 1329 | 113 1081 135 Spaces Moved 769 | 41 653 75 Core 9 | 9 . . Treads . | . . . Legs 760 | 32 653 75 Wheels . | . . . Hover . | . . . Flight . | . . . Fastest Speed 50 | 50 120 120 Average Speed 119 | 104 120 120 Slowest Speed 120 | 120 120 120 Overloaded Moves . | . . . Propulsion Burnouts . | . . . Robots Hopped . | . . . Cave-ins Triggered . | . . . Exploration Rate (%) 40 | 4 96 21 Regions Visited 2 Branch Regions 1 Pre-discovered Areas 2 | . 2 . Known Exits Taken . | . . . Unknown Exits Taken 2 | 1 1 . Scrap Searched . | . . . Spaces Dug 7 | . 7 . Terrain Destroyed 109 | . 79 30 Melee . | . . . Projectile . | . . . AOE 109 | . 79 30 Terrain Rammed . | . . . Walls Destroyed . | . . . Machines Disabled . | . . . Actions | -11 -10 -10 --------- Run | Scr Mat Min Total 992 | 77 814 101 Wait 14 | . 14 . Move 767 | 40 652 75 Hop . | . . . Pick Up 35 | 10 22 3 Fast Attach 4 | . 3 1 Attach 18 | 7 6 5 Detach . | . . . Swap 17 | 2 13 2 Drop 25 | . 22 3 Fire 112 | 18 82 12 Melee . | . . . Ram . | . . . Kick . | . . . Crush . | . . . Escape Stasis . | . . . Rewire . | . . . Trap . | . . . Miscellaneous . | . . . Route ------- -11/Scrapyard -10/Materials (discovered 4 exits: [*Mat x3] / [*Min]) -10/Mines History --------- Turn | Location | Event 13 | -11/Scrapyard | Discovered new exit (range 15) 114 | -11/Scrapyard | Entered Materials 229 | -10/Materials | Lost 3 parts (1u2w) 320 | -10/Materials | Discovered new exit (range 7) 707 | -10/Materials | Discovered new exit (range 9) 708 | -10/Materials | Discovered new exit (range 16) 766 | -10/Materials | Build established: Scavenger-Mutant 851 | -10/Materials | Discovered new exit (range 15) 1195 | -10/Materials | Entered Mines 1206 | -10/Mines | Met a Derelict bent on vengeance 1219 | -10/Mines | Joined a pair of Derelicts in attacking an 0b10 outpost 1284 | -10/Mines | Assembled infested the area 1288 | -10/Mines | Core integrity fell below 50% 1289 | -10/Mines | Assisted by a Guerilla fighting off Assembled 1308 | -10/Mines | System corruption reached 10% 1312 | -10/Mines | Core integrity fell below 20% 1315 | -10/Mines | Destroyed 10 combat bots 1330 | -10/Mines | Destroyed by as-24719 with Assembled Rifle Last Messages --------------- 01310_ Fission Core crushed. 01310_ Hacking Suite destroyed. 01310_ System corrupted by crushing effect (+5). 01311_ as-48379 destroyed. 01311_ as-23236 destroyed. 01311_ as-44234 destroyed. 01312_ Acquired 12 matter. 01312_ R-06 Scavenger collects Sml. Storage Unit. 01313_ System corrupted: Hvy. Assault Rifle rejected. 01313_ as-73715 destroyed. 01313_ as-28526 destroyed. 01315_ as-32126 destroyed. 01317_ as-03067 destroyed. 01317_ Acquired Lgt. Assault Rifle. 01318_ D-53 Grenadier destroyed. 01320_ R-06 Scavenger collects Wheel. 01321_ D-53 Grenadier destroyed. 01326_ System corrupted: Hvy. Assault Rifle targeting data glitched. 01326_ R-06 Scavenger collects Hvy. Assault Rifle. 01330_ The unstable cave ceiling collapses. Map ----- +----------------------------------------------------+ | ?????????????????????????????????????????????????? | | ?????????????????????????? #?????????????????????? | | ?????????????????????????? ????????????????????? | | ?????????????????????????? ????????????????????? | | ?????????????????????????? $#????????????????????? | | ???????????????????????### #????????????????????? | | ??????????????????????? #????????????????????? | | ??????????????????????? #????????????????????? | | ???????????????????????? ?????????????????????? | | ???????????????????????? ?????????????????????? | | ???????????????????????? ?????????????????????? | | ???????????????????????## #?????????????????????? | | ???????????????????????# #?????????????????????? | | ??????????????????????? %###???????????????????? | | ???????????????????????# ????????????????????? | | ?????????????????####### ??????? ???????????? | | ?????????????????# !g ##????? ???????????? | | ?????????????????# ##### ##?## #???????? | | ?????????????????# #???# ## # ????????? | | ##?????########### #???# # # ?????????? | | ###???# #??## = # ?????????? | | ##??# ###########??# %!= ????????? | | #### #????????????## r *% #????????? | | #????????????# #????????? | | #####????????????## % #?????????? | | ##?????????????????# @ #????????? | | ##?????????????????# %[ a #????????? | | #??????????????????##; #?????????? | | #???????????????????#; a#?????????? | | ##???????????????????## ### #?????????? | | ###?????????????????????# #?????????????? | | ????????????????????????###;########?????????????? | | ???????????????????????????# ????????????????????? | | ????????????????????????????#????????????????????? | | ?????????????????????????????????????????????????? | | ?????????????????????????????????????????????????? | | ?????????????????????????????????????????????????? | | ?????????????????????????????????????????????????? | | | | | | | | | | | | | | | | | | | | | | | | | +----------------------------------------------------+ Best States ------------- Heat Dissipation 39 Energy Generation 10 Energy Capacity 250 Matter Stores 300 Matter Capacity 300 Sight Range 16 Terrain Scan Range 16 Terrain Scan Density 10 Evasion (%) 50 Offensive Hacking 10 Item Schematics ----------------- None Robot Schematics ------------------ None Fabricated ------------ Nothing Alien Tech Used ----------------- None Achievements -------------- None Challenges ------------ None Game ------ Seed DamperArmageddonPropulsion Manual? 0 Play Time 00:20:31 Cumulative 173.2 hours Start 2020.12.11 @ 09:59:42 End 2020.12.11 @ 10:17:43 Sessions 1 Manual Loads 0 Difficulty Rogue Special Mode None Game No. 54 Rogue 31 Adventurer 23 Explorer 0 Win Type - Total 6 Types 6/0/0/0/0/0/0/0/0 Lore% 82 Gallery% 83 Achievement% 66 Wizard Run 0 Options --------- ASCII 0 Keyboard 0 Movement Mouse Keybinds 0 Fullscreen 1 Font 18/SmallcapsGlow Map View 76x50 Tactical HUD 1 Map Filters NONE Filters NONE Steam 1 RUN: 91cf1f82-e26d-4e8f-93e9-dc2310155045